bitfinex/quotes_SOLUSD_20240622
["timestamp","ask_amount","ask_price","bid_price","bid_amount"]
[1719045067782,6.54,134.33,134.32,7.4446]
[1719045068385,6.54,134.33,134.28,22.5104]
[1719045068620,6.54,134.3,134.25,15.0942]
[1719045068800,6.54,134.3,134.28,7.4467]
[1719045069077,6.54,134.33,134.29,7.4465]
[1719045069267,6.54,134.3,134.29,7.4465]
[1719045071064,26.16,134.33,134.3,7.446]
[1719045071389,6.54,134.31,134.3,7.446]
[1719045072085,6.54,134.31,134.25,33.7149]
[1719045072086,6.54,134.31,134.29,7.4463]
[1719045072789,6.54,134.3,134.29,7.4463]
[1719045072980,6.54,134.3,134.28,7.4469]
[1719045073384,6.54,134.29,134.28,7.4469]
[1719045074389,7.4444,134.33,134.28,7.4469]
[1719045074581,6.54,134.29,134.28,7.4469]
[1719045080004,7.4439,134.34,134.29,7.4464]
[1719045080201,6.54,134.3,134.29,7.4464]
[1719045082009,6.54,134.3,134.28,7.4468]
[1719045083090,6.54,134.29,134.28,7.4468]
[1719045084917,6.54,134.29,134.23,6.54]
[1719045084918,6.54,134.29,134.26,7.4477]
[1719045085119,6.54,134.27,134.26,7.4477]
[1719045086688,6.54,134.27,134.25,7.4485]
[1719045086893,6.54,134.26,134.25,7.4485]
[1719045088014,6.54,134.27,134.25,7.4485]
[1719045088317,6.54,134.26,134.24,7.4492]
[1719045088900,15.1032,134.31,134.24,7.4492]
[1719045089106,6.54,134.25,134.23,7.4496]
[1719045089312,6.54,134.24,134.23,7.4496]
[1719045090118,6.54,134.24,134.21,40.1504]
[1719045090119,6.54,134.24,134.21,15.0942]
[1719045090321,6.54,134.26,134.22,7.4502]
[1719045090498,6.54,134.26,134.21,7.4508]
[1719045090499,6.54,134.23,134.21,7.4508]
[1719045090703,6.54,134.22,134.21,7.4508]
[1719045091206,13.7286,134.28,134.23,7.4495]
[1719045091413,7.4461,134.3,134.25,7.4487]
[1719045091618,6.54,134.26,134.25,7.4487]
[1719045092417,6.54,134.26,134.24,7.449]
[1719045092621,6.54,134.25,134.24,7.449]
[1719045092819,28.8475,134.31,134.22,18.6249]
[1719045093022,21.3845,134.31,134.22,18.6249]
[1719045093321,33.6045,134.33,134.23,23.3692]
[1719045093496,6.54,134.29,134.24,6.54]
[1719045094014,6.54,134.29,134.24,25.1621]
[1719045094204,6.54,134.29,134.26,7.4478]
[1719045094412,6.54,134.29,134.27,7.4473]
[1719045094731,6.54,134.28,134.23,36.8292]
[1719045095099,6.54,134.28,134.25,7.4484]
[1719045095504,6.54,134.28,134.26,7.4482]
[1719045095804,26.16,134.33,134.24,7.4491]
[1719045095805,6.54,134.27,134.24,7.4491]
[1719045096126,6.54,134.26,134.24,7.4491]
[1719045096511,6.54,134.26,134.23,23.9388]
[1719045096826,6.54,134.26,134.24,7.4492]
[1719045098224,6.54,134.26,134.25,7.4487]
[1719045099501,6.54,134.26,134.23,7.4494]
[1719045099703,6.54,134.24,134.23,7.4494]
[1719045100522,6.54,134.24,134.22,7.4503]
[1719045100826,6.54,134.23,134.22,7.4503]
[1719045102410,6.54,134.24,134.23,7.4498]
[1719045102620,6.54,134.24,134.16,60.3067]
[1719045102919,6.54,134.21,134.2,7.4513]
[1719045103222,6.54,134.22,134.2,7.4513]
[1719045107320,26.16,134.26,134.21,7.451]
[1719045107321,6.54,134.23,134.21,7.451]
[1719045107507,6.54,134.23,134.22,7.4504]
[1719045108011,6.54,134.24,134.21,7.4508]
[1719045108528,6.54,134.23,134.21,7.4508]
[1719045108903,7.4477,134.27,134.22,7.4504]
[1719045109105,15.0156,134.28,134.23,7.4498]
[1719045109106,6.54,134.25,134.23,7.4498]
[1719045109297,6.54,134.25,134.22,7.4502]
[1719045110449,6.54,134.25,134.21,7.4507]
[1719045110620,6.54,134.24,134.21,7.4507]
[1719045110825,6.54,134.24,134.2,7.4513]
[1719045111038,6.54,134.23,134.2,7.4513]
[1719045112437,6.54,134.26,134.17,25.1729]
[1719045112438,6.54,134.22,134.19,7.4518]
[1719045113859,6.54,134.22,134.2,7.4514]
[1719045114527,6.54,134.22,134.16,23.0389]
[1719045114858,6.54,134.21,134.19,7.4518]
[1719045116169,6.54,134.2,134.19,7.4518]
[1719045116324,6.54,134.2,134.18,7.4524]
[1719045117430,6.54,134.2,134.19,7.4521]
[1719045118234,6.54,134.2,134.18,7.4525]
[1719045119661,6.54,134.19,134.17,7.453]
[1719045119954,6.54,134.18,134.17,7.453]
[1719045120132,6.54,134.19,134.17,7.453]
[1719045121059,6.54,134.18,134.17,7.453]
[1719045121557,6.54,134.18,134.15,7.4542]
[1719045121759,6.54,134.16,134.14,7.4546]
[1719045121935,33.6121,134.19,134.14,7.4546]
[1719045121936,6.54,134.15,134.14,7.4546]
[1719045122335,6.54,134.15,134.13,7.4551]
[1719045122946,6.54,134.16,134.14,7.4548]
[1719045123141,33.6123,134.19,134.14,7.4548]
[1719045123446,6.54,134.15,134.12,7.4555]
[1719045123661,6.54,134.14,134.12,7.4555]
[1719045125440,6.54,134.13,134.12,7.4555]
[1719045125948,6.54,134.13,134.08,53.7255]
[1719045125949,6.54,134.13,134.08,16.4352]
[1719045126144,6.54,134.12,134.08,16.4352]
[1719045126348,6.54,134.11,134.09,7.4573]
[1719045128252,6.54,134.1,134.09,7.4573]
[1719045128654,6.54,134.11,134.1,7.457]
[1719045129954,6.54,134.11,134.09,7.4574]
[1719045130163,6.54,134.1,134.09,7.4574]
[1719045130567,6.54,134.1,134.08,7.458]
[1719045131647,6.54,134.1,134.09,7.4576]
[1719045133441,6.54,134.1,134.08,7.458]
[1719045133642,6.54,134.09,134.08,7.458]
[1719045134459,16.5711,134.15,134.1,7.4566]
[1719045134969,6.54,134.11,134.1,7.4566]
[1719045135352,16.5711,134.15,134.11,7.4565]
[1719045135550,16.5711,134.15,134.12,7.4555]
[1719045135766,6.54,134.13,134.12,7.4555]
[1719045135970,6.54,134.13,134.08,18.6455]
[1719045136271,6.54,134.12,134.11,7.4564]
[1719045137069,7.4528,134.18,134.13,7.4551]
[1719045137373,55.20318916,134.19,134.12,7.4558]
[1719045137374,6.54,134.15,134.12,7.4558]
[1719045137545,7.4532,134.17,134.12,7.4558]
[1719045137742,6.54,134.14,134.11,7.4564]
[1719045137947,7.4538,134.16,134.11,7.4564]
[1719045137948,6.54,134.13,134.11,7.4564]
[1719045138163,6.54,134.13,134.12,7.456]
[1719045141652,7.4528,134.18,134.12,7.456]
[1719045141856,6.54,134.14,134.12,7.456]
[1719045143583,6.54,134.14,134.13,7.4554]
[1719045143758,49.2754,134.19,134.13,7.4554]
[1719045143759,6.54,134.15,134.13,7.4554]
[1719045144255,6.54,134.15,134.14,7.4548]
[1719045144457,56.7276,134.19,134.14,7.4548]
[1719045144667,6.54,134.15,134.14,7.4548]
[1719045144877,23.1154,134.19,134.15,7.4542]
[1719045145076,6.54,134.18,134.12,12.9135]
[1719045145386,6.54,134.18,134.16,7.4534]
[1719045145882,6.54,134.17,134.16,7.4534]
[1719045146078,6.54,134.17,134.15,7.454]
[1719045147567,6.54,134.17,134.16,7.4537]
[1719045149274,6.54,134.18,134.16,7.4537]
[1719045149578,16.5711,134.22,134.17,7.4529]
[1719045149880,6.54,134.19,134.17,7.453]
[1719045150979,16.5711,134.22,134.17,7.453]
[1719045151193,24.0215,134.22,134.17,7.453]
[1719045151367,6.54,134.19,134.14,25.1761]
[1719045152278,6.54,134.19,134.17,7.4528]
[1719045152656,24.0216,134.22,134.17,7.4529]
[1719045152857,6.54,134.18,134.16,7.4537]
[1719045153189,6.54,134.17,134.15,7.4541]
[1719045153956,6.54,134.17,134.16,7.4537]
[1719045155070,6.54,134.18,134.17,7.4532]
[1719045157387,24.0217,134.22,134.17,7.4532]
[1719045157567,6.54,134.18,134.17,7.4532]
[1719045158368,6.54,134.18,134.16,7.4535]
[1719045158986,16.5711,134.22,134.17,7.4532]
[1719045159282,24.0216,134.22,134.17,7.4532]
[1719045159477,6.54,134.19,134.17,7.4532]
[1719045159686,6.54,134.19,134.16,7.4536]
[1719045159861,16.5711,134.22,134.14,18.6361]
[1719045159862,6.54,134.18,134.17,7.4531]
[1719045160206,6.54,134.18,134.16,7.4537]
[1719045160562,7.4512,134.21,134.16,7.4537]
[1719045160763,6.54,134.18,134.16,7.4537]
[1719045161983,6.54,134.18,134.16,7.4536]
[1719045162776,6.54,134.18,134.17,7.4532]
[1719045162978,7.451,134.21,134.16,7.4535]
[1719045163180,6.54,134.18,134.16,7.4535]
[1719045164275,7.451,134.21,134.16,7.4535]
[1719045164475,6.54,134.18,134.16,7.4535]
[1719045164887,24.0218,134.22,134.17,7.4532]
[1719045165190,6.54,134.19,134.17,7.4532]
[1719045165870,24.0218,134.22,134.17,7.4532]
[1719045166073,6.54,134.19,134.17,7.4532]
[1719045168879,6.54,134.19,134.16,7.4535]
[1719045169398,6.54,134.18,134.16,7.4535]
[1719045169895,6.54,134.17,134.16,7.4535]
[1719045170099,6.54,134.18,134.16,7.4535]
[1719045173600,7.451,134.21,134.16,7.4535]
[1719045173783,6.54,134.18,134.16,7.4535]
[1719045174607,6.54,134.18,134.17,7.4532]
[1719045175306,6.54,134.19,134.17,7.4532]
[1719045175489,6.5443,134.23,134.18,7.4526]
[1719045175490,7.45,134.23,134.18,7.4526]
[1719045175809,6.54,134.21,134.18,7.4526]
[1719045175980,6.54,134.21,134.19,7.452]
[1719045176501,7.4495,134.24,134.19,7.452]
[1719045177016,6.54,134.21,134.19,7.452]
[1719045177177,6.54,134.21,134.18,7.4524]
[1719045177379,6.54,134.21,134.15,25.1747]
[1719045177586,6.54,134.21,134.17,7.453]
[1719045178194,6.54,134.2,134.17,7.453]
[1719045178398,6.54,134.2,134.16,7.4535]
[1719045178607,6.54,134.19,134.15,7.454]
[1719045178806,6.54,134.18,134.15,7.454]
[1719045179290,6.54,134.18,134.14,7.4546]
[1719045179617,6.54,134.18,134.16,7.4537]
[1719045179916,6.54,134.18,134.15,7.454]
[1719045180816,6.54,134.18,134.16,7.4537]
[1719045182004,6.54,134.18,134.13,16.2288]
[1719045182213,6.54,134.18,134.15,7.4542]
[1719045182521,6.54,134.18,134.16,7.4537]
[1719045182893,6.54,134.18,134.13,16.2288]
[1719045183294,6.54,134.18,134.15,7.454]
[1719045183890,6.54,134.18,134.13,16.2288]
[1719045184103,6.54,134.18,134.16,7.4536]
[1719045186695,6.54,134.18,134.15,7.4542]
[1719045186908,6.54,134.17,134.14,7.4544]
[1719045187108,6.54,134.17,134.13,16.2288]
[1719045187315,6.54,134.17,134.15,7.454]
[1719045188114,6.54,134.18,134.15,7.454]
[1719045190115,6.54,134.18,134.16,7.4537]
[1719045190418,6.54,134.18,134.17,7.4532]
[1719045192031,16.4269,134.21,134.17,7.4532]
[1719045192523,6.54,134.2,134.17,7.4532]
[1719045192704,6.54,134.2,134.18,7.4526]
[1719045193623,6.54,134.2,134.17,7.453]
[1719045195923,6.54,134.2,134.16,7.4536]
[1719045196300,13.9915,134.2,134.16,7.4536]
[1719045196498,23.878,134.21,134.14,25.1772]
[1719045196713,23.878,134.21,134.16,7.4534]
[1719045196916,6.54,134.2,134.16,7.4534]
[1719045200032,7.4506,134.22,134.17,7.4531]
[1719045200216,6.54,134.22,134.18,7.4526]
[1719045201032,13.9904,134.22,134.17,7.453]
[1719045201504,6.54,134.2,134.17,7.453]
[1719045202399,6.54,134.2,134.18,7.4526]
[1719045202631,7.4501,134.23,134.18,7.4526]
[1719045202833,6.54,134.2,134.18,7.4526]
[1719045203420,6.54,134.21,134.18,7.4526]
[1719045204312,6.54,134.21,134.15,6.54]
[1719045204511,6.54,134.21,134.16,7.4537]
[1719045204512,6.54,134.18,134.16,7.4537]
[1719045204727,7.4513,134.21,134.16,7.4537]
[1719045204918,6.54,134.18,134.17,7.4532]
[1719045205116,6.54,134.19,134.16,7.4535]
[1719045205521,6.54,134.18,134.16,7.4535]
[1719045207304,7.4519,134.2,134.13,16.2288]
[1719045207510,6.54,134.17,134.15,7.4541]
[1719045207929,6.54,134.17,134.16,7.4537]
[1719045208736,6.54,134.18,134.16,7.4537]
[1719045211339,6.54,134.18,134.17,7.4531]
[1719045215445,6.54,134.18,134.16,7.4535]
[1719045215645,6.54,134.18,134.17,7.4532]
[1719045216117,6.4742,134.21,134.17,7.4532]
[1719045216515,6.54,134.19,134.17,7.4532]
[1719045217140,6.54,134.2,134.17,7.4532]
[1719045217844,7.4501,134.23,134.18,7.4526]
[1719045218330,6.54,134.21,134.18,7.4526]
[1719045218534,6.54,134.21,134.17,7.453]
[1719045219444,7.45,134.23,134.18,7.4526]
[1719045219632,6.54,134.21,134.18,7.4526]
[1719045220026,7.45,134.23,134.18,7.4526]
[1719045220254,6.54,134.21,134.18,7.4526]
[1719045222418,6.54,134.21,134.15,22.5748]
[1719045222419,16.4269,134.24,134.15,16.0348]
[1719045222631,6.54,134.18,134.16,7.4535]
[1719045222842,35.0513,134.24,134.17,7.4532]
[1719045223236,6.54,134.2,134.17,7.4532]
[1719045223662,7.45,134.23,134.18,7.4526]
[1719045223840,6.54,134.21,134.18,7.4526]
[1719045225564,7.4499,134.23,134.18,7.4526]
[1719045225741,6.54,134.21,134.18,7.4526]
[1719045226456,6.54,134.19,134.16,7.4535]
[1719045226657,6.54,134.18,134.13,18.6383]
[1719045226863,6.54,134.18,134.13,25.1783]
[1719045227564,6.54,134.18,134.16,7.4532]
[1719045227863,6.54,134.19,134.17,7.4532]
[1719045228240,6.54,134.2,134.17,7.4532]
[1719045228440,6.54,134.19,134.17,7.4532]
[1719045228858,6.54,134.2,134.15,25.1755]
[1719045229161,6.54,134.2,134.15,18.6355]
[1719045229662,6.54,134.19,134.14,6.71]
[1719045229858,6.54,134.19,134.14,0.17]
[1719045230163,6.54,134.18,134.14,0.17]
[1719045230366,6.54,134.18,134.16,7.4534]
[1719045231966,6.54,134.18,134.17,7.4532]
[1719045233369,7.4506,134.22,134.17,7.4532]
[1719045233550,6.54,134.18,134.17,7.4532]
[1719045235970,6.54,134.19,134.18,7.4526]
[1719045236686,16.4269,134.24,134.2,7.4513]
[1719045236849,6.54,134.22,134.2,7.4513]
[1719045237050,6.54,134.23,134.2,7.4513]
[1719045237472,16.4269,134.24,134.2,7.4513]
[1719045237773,6.54,134.23,134.2,7.4513]
[1719045238070,6.54,134.22,134.19,7.4519]
[1719045239072,6.54,134.22,134.18,7.4524]
[1719045240565,6.54,134.22,134.19,7.4519]
[1719045240780,22.8464,134.28,134.17,6.5018]
[1719045241078,6.54,134.25,134.22,7.45]
[1719045241376,6.54,134.26,134.22,7.45]
[1719045241579,6.54,134.25,134.22,7.45]
[1719045241763,7.4478,134.27,134.22,7.45]
[1719045242074,22.8464,134.28,134.2,6.54]
[1719045242075,6.54,134.25,134.21,7.4507]
[1719045245256,6.54,134.24,134.21,7.4507]
[1719045245567,6.54,134.24,134.2,7.4514]
[1719045245770,6.54,134.26,134.19,7.4518]
[1719045245949,6.54,134.22,134.2,7.4515]
[1719045246254,6.54,134.22,134.19,7.4518]
[1719045248469,6.54,134.22,134.18,7.4525]
[1719045248653,7.4499,134.23,134.18,7.4523]
[1719045248854,6.54,134.21,134.18,7.4523]
[1719045249364,6.54,134.23,134.17,6.54]
[1719045249563,6.54,134.23,134.18,25.1715]
[1719045249753,6.54,134.23,134.21,7.4508]
[1719045250069,6.54,134.24,134.21,7.4508]
[1719045250568,30.2938,134.28,134.23,7.4497]
[1719045250775,6.54,134.25,134.23,7.4497]
[1719045251855,6.54,134.25,134.22,7.4502]
[1719045253376,23.93,134.28,134.23,7.4497]
[1719045253564,7.4472,134.28,134.23,7.4497]
[1719045253873,6.54,134.27,134.24,7.4492]
[1719045254857,23.9398,134.31,134.25,7.4487]
[1719045255182,6.54,134.29,134.26,7.4481]
[1719045256054,6.54,134.3,134.26,7.4481]
[1719045256254,31.3856,134.31,134.26,7.4481]
[1719045256489,14.9084,134.31,134.26,7.448]
[1719045256781,6.54,134.29,134.26,7.448]
[1719045257880,6.54,134.3,134.26,7.448]
[1719045258564,13.9861,134.3,134.25,7.4485]
[1719045259155,6.54,134.28,134.21,15.8802]
[1719045259384,6.54,134.27,134.23,7.4495]
[1719045259891,6.54,134.27,134.24,7.449]
[1719045262886,6.54,134.27,134.24,7.4492]
[1719045263474,6.54,134.27,134.25,7.4487]
[1719045265489,6.54,134.28,134.25,7.4487]
[1719045268095,6.54,134.28,134.26,7.4479]
[1719045268391,7.463,134.31,134.26,7.4479]
[1719045268597,14.9087,134.31,134.26,7.4479]
[1719045268883,6.54,134.29,134.26,7.4479]
[1719045269390,7.463,134.31,134.27,7.4476]
[1719045269696,14.003,134.31,134.27,7.4476]
[1719045269894,14.003,134.31,134.28,7.447]
[1719045270271,14.003,134.32,134.28,7.447]
[1719045277582,7.463,134.31,134.29,7.4465]
[1719045278818,7.463,134.31,134.28,7.4468]
[1719045279381,7.463,134.31,134.3,7.446]
[1719045279587,7.463,134.34,134.3,7.446]
[1719045279782,7.463,134.31,134.29,7.4463]
[1719045280502,7.463,134.31,134.3,7.446]
[1719045281702,7.463,134.31,134.29,7.4464]
[1719045282596,7.463,134.31,134.27,6.54]
[1719045282597,7.463,134.33,134.27,6.54]
[1719045282809,14.003,134.33,134.29,7.4462]
[1719045283009,14.003,134.33,134.3,7.4459]
[1719045285600,7.463,134.32,134.31,7.4454]
[1719045285777,7.463,134.32,134.31,13.9854]
[1719045285981,7.463,134.32,134.31,14.1554]
[1719045286182,7.463,134.32,134.31,14.3254]
[1719045286581,6.54,134.38,134.34,7.4437]
[1719045287799,7.4406,134.4,134.35,7.4431]
[1719045288101,6.54,134.39,134.34,13.9835]
[1719045288296,13.981,134.39,134.34,7.4435]
[1719045290284,7.4405,134.4,134.35,23.039]
[1719045290592,13.9805,134.4,134.35,29.579]
[1719045290905,6.54,134.39,134.35,15.596]
[1719045291803,7.4405,134.4,134.35,23.0387]
[1719045292101,13.9805,134.4,134.35,29.5787]
[1719045292405,6.54,134.4,134.35,29.5789]
[1719045292584,13.9805,134.4,134.35,29.5789]
[1719045293000,13.9805,134.4,134.35,23.0389]
[1719045293508,6.54,134.39,134.36,7.4426]
[1719045294404,7.4401,134.41,134.36,7.4426]
[1719045295599,6.54,134.39,134.36,7.4426]
[1719045295798,6.54,134.4,134.36,7.4426]
[1719045296200,7.4401,134.41,134.36,7.4426]
[1719045296413,6.54,134.39,134.36,7.4426]
[1719045296714,6.54,134.38,134.35,7.443]
[1719045297205,6.54,134.37,134.35,7.443]
[1719045297814,7.463,134.36,134.34,7.4435]
[1719045298022,7.463,134.36,134.35,7.4432]
[1719045298306,7.463,134.36,134.34,7.4436]
[1719045298506,7.463,134.35,134.33,7.4442]
[1719045298698,7.463,134.35,134.34,7.4437]
[1719045298899,7.463,134.35,134.33,7.4442]
[1719045299301,7.463,134.35,134.34,7.4437]
[1719045301220,6.54,134.36,134.35,7.4431]
[1719045301221,7.463,134.36,134.35,7.4431]
[1719045303428,7.463,134.37,134.36,7.4426]
[1719045304311,6.54,134.41,134.38,7.441]
[1719045304702,6.54,134.41,134.39,7.4409]
[1719045306118,6.54,134.41,134.38,7.4413]
[1719045306621,7.4383,134.44,134.38,7.4413]
[1719045306817,6.54,134.41,134.38,7.4413]
[1719045307127,6.54,134.42,134.38,7.4413]
[1719045307308,6.54,134.42,134.39,7.4408]
[1719045309034,6.54,134.41,134.39,7.4408]
[1719045310738,7.4383,134.44,134.39,7.4408]
[1719045310920,6.54,134.42,134.39,7.4408]
[1719045311127,7.4387,134.44,134.35,21.7067]
[1719045311430,6.54,134.41,134.38,7.4413]
[1719045312225,6.54,134.42,134.39,7.4408]
[1719045313709,6.54,134.41,134.37,7.4416]
[1719045313932,6.54,134.41,134.38,7.4413]
[1719045314628,6.54,134.39,134.36,7.4424]
[1719045315304,6.54,134.39,134.37,7.4421]
[1719045315933,6.54,134.39,134.36,7.4424]
[1719045317424,6.54,134.4,134.37,7.442]
[1719045317612,6.54,134.4,134.36,7.4424]
[1719045317808,6.54,134.39,134.36,7.4424]
[1719045318110,14.003,134.38,134.35,7.4429]
[1719045318518,14.003,134.38,134.36,7.4426]
[1719045318711,14.003,134.38,134.35,7.4429]
[1719045319119,7.463,134.4,134.36,7.4426]
[1719045319330,14.003,134.38,134.36,7.4426]
[1719045319525,14.003,134.38,134.35,7.443]
[1719045320231,14.003,134.38,134.34,7.4436]
[1719045320531,6.54,134.37,134.34,7.4436]
[1719045320928,14.003,134.38,134.34,7.4436]
[1719045321129,6.54,134.37,134.34,7.4436]
[1719045321324,6.54,134.37,134.32,6.54]
[1719045321325,6.54,134.37,134.35,7.4432]
[1719045321512,7.463,134.38,134.35,7.4432]
[1719045321839,6.54,134.37,134.34,7.4435]
[1719045323331,6.54,134.37,134.35,7.443]
[1719045324429,6.54,134.38,134.35,7.443]
[1719045324634,14.003,134.38,134.35,7.443]
[1719045324927,6.54,134.37,134.35,7.443]
[1719045325506,6.54,134.37,134.36,7.4426]
[1719045325709,14.003,134.38,134.35,7.4427]
[1719045325920,14.003,134.38,134.36,7.4425]
[1719045326115,7.463,134.38,134.37,7.4421]
[1719045326534,7.463,134.38,134.36,7.4425]
[1719045327921,7.463,134.38,134.35,7.443]
[1719045328246,14.003,134.38,134.35,7.443]
[1719045329040,14.003,134.38,134.36,7.4426]
[1719045330447,7.463,134.38,134.36,7.4426]
[1719045331749,7.463,134.38,134.35,7.443]
[1719045332647,7.463,134.39,134.35,7.443]
[1719045332946,7.463,134.39,134.33,25.1497]
[1719045332947,14.003,134.39,134.36,7.4426]
[1719045333251,6.54,134.39,134.36,7.4426]
[1719045334122,6.6513,134.41,134.37,7.4419]
[1719045334322,13.1913,134.41,134.37,7.4419]
[1719045336030,13.1913,134.41,134.35,6.54]
[1719045336031,6.54,134.41,134.38,7.4414]
[1719045336420,6.54,134.41,134.37,7.4418]
[1719045337554,6.54,134.41,134.36,6.54]
[1719045337731,16.327,134.43,134.4,7.4404]
[1719045337732,22.867,134.43,134.4,7.4404]
[1719045338044,7.463,134.46,134.41,7.4395]
[1719045338349,7.463,134.46,134.41,7.4396]
[1719045338350,7.463,134.44,134.41,7.4396]
[1719045338829,14.003,134.44,134.41,7.4396]
[1719045339528,14.003,134.44,134.39,6.54]
[1719045340228,14.003,134.44,134.38,25.1434]
[1719045340437,14.003,134.44,134.4,7.4401]
[1719045341749,6.54,134.43,134.38,18.6034]
[1719045341952,7.463,134.46,134.38,25.1434]
[1719045342146,14.9004,134.46,134.41,7.4394]
[1719045342338,7.463,134.44,134.42,7.4392]
[1719045343926,7.463,134.46,134.43,7.4387]
[1719045344146,14.003,134.46,134.43,7.4387]
[1719045344851,7.463,134.46,134.43,7.4387]
[1719045345756,7.463,134.49,134.42,6.54]
[1719045345940,17.2014636,134.5,134.42,6.54]
[1719045345941,7.463,134.47,134.45,7.4375]
[1719045347030,7.463,134.48,134.45,7.4375]
[1719045347858,7.463,134.48,134.44,7.438]
[1719045348534,14.003,134.48,134.44,7.438]
[1719045348734,14.003,134.48,134.42,6.54]
[1719045349056,17.2014636,134.5,134.44,7.4381]
[1719045349057,7.463,134.46,134.44,7.4381]
[1719045349737,7.463,134.46,134.43,7.4386]
[1719045350060,7.463,134.47,134.43,7.4386]
[1719045350231,14.003,134.47,134.43,7.4386]
[1719045350952,14.003,134.47,134.39,16.3556]
[1719045350953,14.003,134.45,134.39,18.6023]
[1719045351254,6.54,134.44,134.39,25.1423]
[1719045351460,7.463,134.45,134.43,7.4385]
[1719045351635,7.463,134.45,134.44,7.4382]
[1719045352033,7.463,134.46,134.44,7.4382]
[1719045352941,7.463,134.48,134.44,7.4382]
[1719045353131,7.463,134.46,134.45,7.4377]
[1719045353947,7.463,134.46,134.44,7.438]
[1719045354151,7.463,134.47,134.44,7.438]
[1719045355380,7.463,134.48,134.44,7.438]
[1719045355531,7.463,134.48,134.46,7.437]
[1719045356061,7.463,134.48,134.45,7.4375]
[1719045359066,14.003,134.48,134.44,7.4379]
[1719045359536,14.003,134.48,134.43,6.54]
[1719045359537,14.003,134.48,134.45,7.4376]
[1719045359962,14.003,134.48,134.42,18.597]
[1719045359963,14.003,134.48,134.44,7.438]
[1719045361060,14.003,134.49,134.45,7.4376]
[1719045361268,14.003,134.49,134.46,7.437]
[1719045361561,7.463,134.49,134.46,7.437]
[1719045361760,7.463,134.49,134.47,7.4365]
[1719045362450,7.463,134.49,134.48,7.436]
[1719045363048,8.3374636,134.5,134.48,7.436]
[1719045363854,14.8774636,134.5,134.46,7.4366]
[1719045365046,7.463,134.49,134.43,37.1925]
[1719045365243,0.8744636,134.5,134.47,6.54]
[1719045365546,0.8744636,134.5,134.45,6.54]
[1719045366067,0.8744636,134.5,134.47,7.4362]
[1719045366265,0.8744636,134.5,134.46,7.4369]
[1719045366767,8.3094636,134.5,134.45,7.4375]
[1719045366950,6.54,134.49,134.45,7.4375]